bitfinex-derivatives/quotes_BNBF0:USTF0_20251203
["timestamp","ask_amount","ask_price","bid_price","bid_amount"]
[1764770809879,2.72743105,895.16,893.73,0.72007542]
[1764770810078,2.72743105,895.16,893.74,0.72007542]
[1764770810277,2.72743105,895.16,893.75,0.72007542]
[1764770810478,2.72743105,895.16,893.76,0.72007542]
[1764770810677,2.72743105,895.16,893.77,0.72007542]
[1764770810880,2.72743105,895.25,893.78,0.72007542]
[1764770811081,2.72743105,895.25,893.79,0.72007542]
[1764770811281,2.72743105,895.34,893.86,0.84106519]
[1764770811482,2.72743105,895.34,893.9,0.84106519]
[1764770811681,2.72743105,895.34,893.91,0.72007542]
[1764770811877,2.72743105,895.42,893.92,0.72007542]
[1764770812082,2.72743105,895.42,893.93,0.72007542]
[1764770812281,2.72743105,895.42,893.94,0.72007542]
[1764770812576,2.72743105,895.42,893.95,0.72007542]
[1764770812780,2.72743105,895.42,893.96,0.72007542]
[1764770812980,2.72743105,895.42,893.97,0.72007542]
[1764770813277,2.72743105,895.42,892.97,0.01373575]
[1764770813278,2.72743105,895.42,893.98,0.72007542]
[1764770813482,2.72743105,895.41,893.99,0.72007542]
[1764770813683,2.72743105,895.41,894.0,0.72007542]
[1764770813878,2.72743105,895.41,894.01,0.72007542]
[1764770814078,2.72743105,895.41,894.02,0.72007542]
[1764770814281,2.72743105,895.41,894.03,0.72007542]
[1764770814479,2.72743105,895.41,894.04,0.72007542]
[1764770814683,2.72743105,895.41,894.05,0.72007542]
[1764770814879,2.72743105,895.36,894.06,0.72007542]
[1764770815182,2.72743105,895.36,894.07,0.72007542]
[1764770815382,2.72743105,895.36,894.08,0.72007542]
[1764770815580,2.72743105,895.36,894.09,0.72007542]
[1764770815784,2.72743105,895.36,894.1,0.72007542]
[1764770816079,2.72743105,895.39,894.11,0.72007542]
[1764770816283,2.72743105,895.39,894.12,0.72007542]
[1764770816483,2.72743105,895.39,894.13,0.72007542]
[1764770816783,2.72743105,895.39,894.14,0.72007542]
[1764770817083,2.72743105,895.39,894.15,0.72007542]
[1764770817284,2.72743105,895.39,894.16,0.72007542]
[1764770817480,2.72743105,895.43,894.13,1.194]
[1764770817784,2.72743105,895.43,894.14,0.77454491]
[1764770817985,2.72743105,895.38,894.13,1.194]
[1764770818587,2.72743105,895.32,894.13,1.194]
[1764770818985,2.72743105,895.31,894.13,1.194]
[1764770819484,0.00918339,896.33,894.13,1.194]
[1764770819485,2.72743105,895.21,894.13,1.194]
[1764770820182,2.72743105,895.18,894.13,1.194]
[1764770820683,2.72743105,895.02,894.13,1.194]
[1764770821683,2.72743105,895.06,894.13,1.194]
[1764770822688,2.72743105,895.05,894.13,1.194]
[1764770823191,2.72743105,894.99,894.13,1.194]
[1764770823684,2.72743105,895.01,894.13,1.194]
[1764770824485,2.72743105,895.0,894.13,1.194]
[1764770824684,2.72743105,895.56,894.14,0.77443882]
[1764770824885,2.72743105,895.56,894.15,0.77443882]
[1764770825086,2.72743105,895.56,894.16,0.77443882]
[1764770825286,2.72743105,895.75,894.21,0.84106519]
[1764770825489,2.72743105,895.75,894.24,0.84106519]
[1764770825683,2.72743105,895.75,894.25,0.77443882]
[1764770825888,2.72743105,895.75,894.26,0.77443882]
[1764770826087,2.72743105,895.75,894.27,0.77443882]
[1764770826287,2.72743105,895.75,894.28,0.77443882]
[1764770826590,2.72743105,895.75,894.29,0.77443882]
[1764770826892,2.72743105,895.77,894.3,0.77443882]
[1764770827089,2.72743105,895.77,894.31,0.77443882]
[1764770827293,2.72743105,895.57,894.32,0.77443882]
[1764770827491,2.72743105,895.57,894.33,0.77443882]
[1764770827794,2.72743105,895.58,894.34,0.77443882]
[1764770827995,2.72743105,895.58,894.13,1.194]
[1764770828193,2.72743105,895.58,894.14,0.76973862]
[1764770828396,5.55602203,896.39,894.13,1.194]
[1764770828397,2.72743105,895.27,894.13,1.194]
[1764770828797,2.72743105,895.22,894.13,1.194]
[1764770829195,3.88921542,895.59,894.13,1.194]
[1764770829393,1.06151545,895.58,894.13,1.194]
[1764770829593,1.06151545,895.57,894.13,1.194]
[1764770829799,2.73108939,895.11,894.13,1.194]
[1764770829998,2.73108939,895.25,894.13,1.194]
[1764770830498,2.73108939,895.27,894.13,1.194]
[1764770830898,2.73108939,895.38,894.14,0.73918031]
[1764770831097,2.73108939,895.38,894.13,1.194]
[1764770831098,2.73108939,895.38,894.15,0.73918031]
[1764770831296,2.73108939,895.38,894.16,0.73918031]
[1764770831493,2.73108939,895.42,894.17,0.73918031]
[1764770831696,2.73108939,895.42,894.18,0.73918031]
[1764770831894,2.73108939,895.63,894.19,1.57866627]
[1764770832093,2.73108939,895.63,894.2,0.73918031]
[1764770832293,2.73108939,895.72,894.21,0.73918031]
[1764770832497,2.73108939,895.72,894.2,0.83948596]
[1764770832498,2.73108939,895.72,894.22,0.73918031]
[1764770832698,2.73108939,895.72,894.19,0.83948596]
[1764770832699,2.73108939,895.72,894.23,0.73918031]
[1764770832898,2.73108939,895.7,894.24,0.73918031]
[1764770833198,2.73108939,895.7,894.25,0.73918031]
[1764770833494,2.73108939,895.7,894.26,0.73918031]
[1764770833698,2.73108939,895.7,894.27,0.73918031]
[1764770833899,2.73108939,895.7,894.28,0.73918031]
[1764770834093,2.73108939,895.7,894.29,0.73918031]
[1764770834299,2.73108939,895.7,894.3,0.73918031]
[1764770834501,2.73108939,895.71,894.31,0.73918031]
[1764770834700,2.73108939,895.71,894.32,0.73918031]
[1764770834900,2.73108939,895.71,894.33,0.73918031]
[1764770835101,2.73108939,895.71,894.34,0.73918031]
[1764770835297,2.73108939,895.71,894.35,0.73918031]
[1764770835599,2.73108939,895.79,894.36,0.73918031]
[1764770835799,2.73108939,895.79,894.37,0.73918031]
[1764770835998,2.73108939,895.9,894.38,1.57866627]
[1764770836301,2.73108939,895.9,894.42,0.83948596]
[1764770836597,2.73108939,895.96,894.45,0.83948596]
[1764770836802,2.73108939,895.96,894.46,0.73918031]
[1764770837001,2.73108939,896.06,894.54,0.83948596]
[1764770837202,2.73108939,896.06,894.55,0.73918031]
[1764770837513,2.73108939,896.06,894.56,0.73918031]
[1764770837694,2.73108939,896.06,894.28,1.426]
[1764770837695,2.73108939,896.06,894.57,0.73918031]
[1764770837896,2.73108939,896.06,894.58,0.73918031]
[1764770838101,2.73108939,896.07,894.59,0.73918031]
[1764770838302,2.73108939,896.07,894.6,0.73918031]
[1764770838497,2.73108939,896.07,894.61,0.73918031]
[1764770838696,2.73108939,896.07,894.62,0.73918031]
[1764770839000,2.73108939,896.07,894.63,0.73918031]
[1764770839203,2.73108939,896.07,894.64,0.73918031]
[1764770839400,2.73108939,896.07,894.65,0.73918031]
[1764770839598,2.73108939,896.07,894.66,0.73918031]
[1764770839799,2.73108939,896.07,894.67,0.73918031]
[1764770840098,2.73108939,896.07,894.68,0.73918031]
[1764770840303,2.73108939,896.07,894.69,0.73918031]
[1764770840504,2.73108939,896.14,894.7,0.73918031]
[1764770840704,2.73108939,896.14,894.71,0.73918031]
[1764770840904,2.73108939,896.23,894.79,0.83948596]
[1764770841104,2.73108939,896.23,894.8,1.57866627]
[1764770841303,2.73108939,896.32,894.81,0.73918031]
[1764770841504,2.73108939,896.32,894.82,0.73918031]
[1764770841705,2.73108939,896.32,894.83,0.73918031]
[1764770841906,2.73108939,896.31,894.84,0.73918031]
[1764770842107,2.73108939,896.31,894.85,0.73918031]
[1764770842405,2.73108939,896.31,894.86,0.73918031]
[1764770842701,11.18338737,896.31,894.87,0.73918031]
[1764770842901,2.73108939,896.24,894.88,0.73918031]
[1764770843107,2.73108939,896.24,894.6,0.83948596]
[1764770843305,2.73108939,896.24,894.61,1.57818638]
[1764770843605,2.73108939,896.2,894.75,0.83948596]
[1764770843901,2.73108939,896.26,894.76,0.73870042]
[1764770844102,2.73108939,896.26,894.77,0.73870042]
[1764770844305,2.73108939,896.26,894.78,0.73870042]
[1764770844506,2.73108939,896.26,894.79,0.73870042]
[1764770844706,2.73108939,896.26,894.8,0.73870042]
[1764770844905,2.73108939,896.2,894.81,0.73870042]
[1764770845101,2.73108939,896.2,894.82,0.73870042]
[1764770845306,2.73108939,896.2,894.83,0.73870042]
[1764770845504,2.73108939,896.2,894.84,0.73870042]
[1764770845702,2.73108939,896.2,894.85,0.73870042]
[1764770845903,2.73108939,896.2,894.86,0.73870042]
[1764770846103,8.71386451,896.26,894.87,0.73870042]
[1764770846404,8.71386451,896.26,894.88,0.73870042]
[1764770846604,8.71386451,896.26,894.89,0.73870042]
[1764770846804,8.71386451,896.26,894.9,0.73870042]
[1764770847008,8.71386451,896.26,894.91,0.73870042]
[1764770847304,8.71386451,896.26,894.92,0.73870042]
[1764770847607,8.71386451,896.26,894.82,0.83948596]
[1764770847608,8.71386451,896.26,894.93,0.73870042]
[1764770847807,8.71386451,896.26,894.94,0.73870042]
[1764770848011,2.73108939,896.17,894.65,0.83948596]
[1764770848207,2.73108939,896.17,894.28,1.426]
[1764770848208,2.73108939,896.17,894.66,0.73864314]
[1764770848407,2.73108939,896.17,894.67,0.73864314]
[1764770848706,2.73108939,895.94,894.68,0.73864314]
[1764770848907,2.73108939,896.05,894.69,0.73864314]
[1764770849106,1.06404179,896.04,894.28,1.426]
[1764770849304,1.06404179,896.03,894.29,0.73887291]
[1764770849504,2.73108939,895.78,894.3,0.73887291]
[1764770849803,1.06525886,895.77,894.31,0.73887291]
[1764770850004,2.73108939,895.64,894.32,0.73887291]
[1764770850207,2.73108939,895.64,894.28,1.426]
[1764770850208,2.73108939,895.64,894.33,0.73887291]
[1764770850404,1.066717,895.63,894.34,0.73887291]
[1764770850608,2.73108939,895.56,894.28,1.426]
[1764770850908,2.73108939,895.56,894.29,0.73902538]
[1764770851207,8.71386451,896.26,894.3,0.73902538]
[1764770851208,2.73108939,895.58,894.3,0.73902538]
[1764770851404,2.73108939,895.58,894.31,0.73902538]
[1764770851604,2.73108939,895.76,894.32,0.73902538]
[1764770851804,2.73108939,895.76,894.33,0.73902538]
[1764770852003,2.73108939,895.76,894.34,0.73902538]
[1764770852207,2.73108939,895.74,894.35,0.73902538]
[1764770852406,1.06911444,895.73,894.36,0.73902538]
[1764770852608,2.73108939,895.61,894.37,0.73902538]
[1764770852808,1.06911444,895.6,894.38,0.73902538]
[1764770853106,1.06911444,895.59,894.39,0.73898508]
[1764770853310,1.06925136,895.58,894.28,1.426]
[1764770853610,8.71386451,896.26,894.29,0.73898845]
[1764770853611,1.06925136,895.57,894.29,0.73898845]
[1764770853907,2.73108939,895.62,894.3,0.73898845]
[1764770854103,2.73108939,895.62,894.28,1.426]
[1764770854104,2.73108939,895.62,894.31,0.73898845]
[1764770854305,2.73108939,895.62,894.32,0.73898845]
[1764770854507,1.06952944,895.61,894.33,0.73898845]
[1764770854707,1.06952944,895.6,894.34,0.73898845]
[1764770854907,1.06952944,895.59,894.35,0.73898845]
[1764770855106,2.73108939,895.64,894.36,0.73898845]
[1764770855311,1.06952929,895.63,894.37,0.73898845]
[1764770855511,1.06952929,895.62,894.38,0.73898845]
[1764770855708,1.06952929,895.61,894.39,0.73898845]
[1764770855915,1.06952929,895.6,894.4,0.73898845]
[1764770856214,1.06952929,895.59,894.41,0.73898845]
[1764770856415,1.06952929,895.58,894.42,0.73898845]
[1764770856714,2.73108939,895.65,894.27,1.324]
[1764770857014,1.06991492,895.64,894.28,0.73902022]
[1764770857214,2.73108939,895.53,894.27,1.324]
[1764770857410,1.06991492,895.52,894.27,1.324]
[1764770857615,1.06991492,895.51,894.27,1.324]
[1764770857811,2.73108939,895.48,894.27,1.324]
[1764770858010,1.06991492,895.47,893.87,0.83948596]
[1764770858211,1.06991492,895.47,893.88,0.73919252]
[1764770858212,2.73108939,895.14,893.88,0.73919252]
[1764770858412,2.73108939,895.14,893.61,0.83948596]
[1764770858413,1.06991492,895.13,893.58,0.83948596]
[1764770858717,2.73108939,895.1,893.59,0.73938219]
[1764770858920,1.06991492,895.09,893.6,0.73938219]
[1764770859221,2.73108939,895.05,893.61,0.73938219]
[1764770859417,1.06991492,895.04,893.62,0.73938219]
[1764770859614,1.06991492,895.04,893.63,0.73938219]
[1764770859814,1.06991492,895.04,893.64,0.73938219]
[1764770860018,1.06991492,895.03,893.65,0.73938219]
[1764770860217,1.06991492,895.03,893.64,1.032]
[1764770860218,1.06991492,895.02,893.66,0.73938219]
[1764770860521,1.06991492,895.01,893.67,1.87138219]
[1764770860717,1.06991492,895.0,893.68,0.73938219]
[1764770860913,1.06991492,894.99,893.69,0.73938219]
[1764770861113,1.06991492,894.98,893.7,0.73938219]
[1764770861319,1.06991492,894.97,893.71,0.73938219]
[1764770861518,1.06991492,894.96,893.72,0.73938219]
[1764770861817,1.06991492,894.95,893.73,0.73938219]
[1764770862019,1.06991492,894.94,893.67,1.132]
[1764770862218,1.06991492,894.93,893.67,1.132]
[1764770862419,2.73108939,894.74,893.67,1.132]
[1764770862714,1.06991492,894.73,893.67,1.132]
[1764770863113,1.06991492,894.72,893.67,1.132]
[1764770863316,1.06991492,894.71,893.67,1.132]
[1764770863518,1.06991492,894.7,893.67,1.132]
[1764770863717,1.06991492,894.69,893.67,1.132]
[1764770863918,1.06991492,894.68,893.67,1.132]
[1764770864115,1.06991492,894.67,893.67,1.132]
[1764770864321,1.06991492,894.66,893.67,1.132]
[1764770864521,1.06991492,894.65,893.67,1.132]
[1764770864717,1.06991492,894.64,893.67,1.132]
[1764770864916,1.06991492,894.63,893.67,1.132]
[1764770865121,1.06991492,894.62,893.67,1.132]
[1764770865415,2.73108939,894.5,893.67,1.132]
[1764770865619,1.06991492,894.49,893.67,1.132]
[1764770865916,2.73108939,894.46,893.67,1.132]
[1764770866118,1.06991492,894.45,893.67,1.132]
[1764770866518,2.73108939,894.42,893.67,1.132]
[1764770866822,1.06991492,894.41,893.67,1.132]
[1764770867122,2.73108939,894.3,893.67,1.132]
[1764770867322,1.06991492,894.29,893.67,1.132]
[1764770868221,1.06991492,894.28,893.67,1.132]
[1764770868425,1.06991492,894.27,893.67,1.132]
[1764770868724,1.06991492,894.26,893.67,1.132]
[1764770869024,1.06991492,894.25,893.67,1.132]
[1764770869224,1.06991492,894.24,893.67,1.132]
[1764770869521,2.73108939,894.35,893.67,1.132]
[1764770869721,1.07301587,894.34,893.67,1.132]
[1764770869920,1.07301587,894.33,893.67,1.132]
[1764770870123,1.07301587,894.32,893.67,1.132]
[1764770870420,1.07301587,894.31,893.67,1.132]
[1764770870621,1.07301587,894.3,893.67,1.132]
[1764770870822,1.07301587,894.29,893.67,1.132]
[1764770871124,1.07301587,894.28,893.67,1.132]
[1764770871320,1.07301587,894.27,893.67,1.132]
[1764770871525,1.07301587,894.26,893.67,1.132]
[1764770871725,1.07301587,894.25,893.67,1.132]
[1764770871926,1.07078284,894.24,893.67,1.132]
[1764770872128,8.7307937,894.45,893.67,1.132]
[1764770872129,1.07078284,894.23,893.67,1.132]
[1764770872423,1.07078284,894.22,893.67,1.132]
[1764770872622,1.07078284,894.21,893.67,1.132]
[1764770872823,2.73108939,894.32,893.67,1.132]
[1764770873025,1.07042164,894.31,893.67,1.132]
[1764770873226,2.73108939,894.32,893.67,1.132]
[1764770873227,1.07042164,894.3,893.67,1.132]
[1764770873425,1.07042164,894.29,893.67,1.132]
[1764770873629,2.73108939,894.32,893.67,1.132]
[1764770873826,1.07057247,894.31,893.67,1.132]
[1764770874028,2.73108939,894.41,893.67,1.132]
[1764770874228,1.07068436,894.4,893.67,1.132]
[1764770874425,8.7307937,894.45,893.67,1.132]
[1764770881139,1.06777809,894.44,893.67,1.132]
[1764770881337,1.06777809,894.43,893.67,1.132]
[1764770881537,8.7307937,894.45,893.67,1.132]
[1764770881837,1.06786668,894.44,893.67,1.132]
[1764770882137,1.06786668,894.43,893.67,1.132]
[1764770882438,8.7307937,894.45,893.67,1.132]
[1764770882639,1.067858,894.44,893.67,1.132]
[1764770882839,1.067858,894.43,893.67,1.132]
[1764770883140,1.067858,894.43,892.75,0.01082561]
[1764770883141,3.79894739,894.42,892.75,0.01082561]
[1764770883438,1.067858,894.41,892.23,0.83948596]
[1764770883639,1.067858,894.4,892.25,0.83948596]
[1764770883836,1.067858,894.39,892.33,0.83948596]
[1764770884039,1.067858,894.38,892.34,0.73127415]
[1764770884235,1.067858,894.37,892.35,0.73127415]
[1764770884534,1.067858,894.36,892.36,0.73127415]
[1764770884739,8.7307937,894.45,892.38,0.83948596]
[1764770884740,1.067858,894.35,892.38,0.83948596]
[1764770884939,1.067858,894.34,892.39,0.73127415]
[1764770885135,1.067858,894.33,892.4,0.73127415]
[1764770885438,1.067858,894.32,892.41,0.73127415]
[1764770885637,1.067858,894.31,892.42,0.73127415]
[1764770885835,1.067858,894.3,892.43,0.73127415]
[1764770886040,1.067858,894.29,892.44,0.73127415]
[1764770886237,1.067858,894.28,892.45,0.73127415]
[1764770886436,1.067858,894.27,892.46,0.73127415]
[1764770886640,1.067858,894.26,892.47,0.73127415]
[1764770886840,1.067858,894.25,892.48,0.73127415]
[1764770887041,1.067858,894.24,892.49,0.73127415]
[1764770887342,1.067858,894.23,892.5,0.73127415]
[1764770887642,1.067858,894.22,892.51,0.73127415]
[1764770887941,8.7307937,894.45,892.52,0.73127415]
[1764770888141,1.0675222,894.44,892.53,0.73127415]
[1764770888339,1.0675222,894.43,892.54,0.73127415]
[1764770888542,8.7307937,894.45,892.56,0.83948596]
[1764770888739,8.7307937,894.45,892.61,0.83948596]
[1764770888939,8.7307937,894.45,892.62,1.57076011]
[1764770889239,8.7307937,894.45,892.63,0.73127415]
[1764770889438,8.7307937,894.45,892.64,0.73127415]
[1764770889637,8.7307937,894.45,892.58,0.83948596]
[1764770889638,8.7307937,894.45,892.65,0.73127415]
[1764770889938,8.7307937,894.45,892.66,0.73127415]
[1764770890138,8.7307937,894.45,892.67,0.73127415]
[1764770890340,1.08554618,894.44,892.68,0.73127415]
[1764770890639,8.7307937,894.45,892.42,1.183]
[1764770890640,1.08390393,893.81,892.42,1.183]
[1764770890842,1.08390393,893.69,892.42,1.183]
[1764770891242,1.08390393,893.66,892.42,1.183]
[1764770891542,1.08390393,893.65,892.42,1.183]
[1764770891739,1.08390393,893.57,892.42,1.183]
[1764770892537,1.08390393,893.52,892.42,1.183]
[1764770892943,1.08390393,893.5,892.42,1.183]
[1764770893141,1.08390393,893.38,892.42,1.183]
[1764770893341,1.08390393,893.37,892.42,1.183]
[1764770893542,1.08390393,893.36,892.42,1.183]
[1764770893745,1.08390393,893.37,892.42,1.183]
[1764770894241,1.08390393,893.36,892.42,1.183]
[1764770894447,1.08390393,893.35,892.42,1.183]
[1764770894654,1.08390393,893.39,892.42,1.183]
[1764770894849,1.08390393,893.31,892.42,1.183]
[1764770895349,1.08390393,893.29,892.42,1.183]
[1764770895548,1.62585589,893.45,892.42,1.183]
[1764770895549,1.08390393,893.05,892.42,1.183]
[1764770895748,1.08390393,893.08,892.42,1.183]
[1764770896246,1.08390393,893.18,892.42,1.183]
[1764770896748,1.08390393,893.16,892.42,1.183]
[1764770896948,1.08390393,893.17,892.42,1.183]
[1764770897148,1.08390393,893.16,892.42,1.183]
[1764770897349,2.73108939,893.97,892.42,1.183]
[1764770897350,1.08390393,893.23,892.42,1.183]
[1764770897650,1.08390393,893.24,892.42,1.183]
[1764770898149,1.08390393,893.29,892.42,1.183]
[1764770898851,1.08390393,893.11,892.42,1.183]
[1764770899045,1.08390393,893.03,892.42,1.183]
[1764770899244,1.08390393,893.01,892.42,1.183]
[1764770899648,1.08390393,893.03,892.42,1.183]
[1764770899950,1.08390393,893.19,892.42,1.183]
[1764770900346,1.08390393,893.2,892.42,1.183]
[1764770900846,1.08390393,893.03,892.42,1.183]
[1764770901345,1.08390393,893.1,892.42,1.183]
[1764770901647,1.08390393,893.11,892.42,1.183]
[1764770902046,1.08390393,893.12,892.42,1.183]
[1764770902250,3.82352515,894.23,892.42,1.183]
[1764770902251,1.08390393,893.26,892.42,1.183]
[1764770902550,1.08390393,893.25,892.42,1.183]
[1764770903046,0.00816454,894.14,892.42,1.183]
[1764770903047,1.08390393,893.53,892.42,1.183]
[1764770903252,1.08390393,893.51,892.42,1.183]
[1764770903651,1.08390393,893.52,892.42,1.183]
[1764770903848,1.08390393,893.51,892.42,1.183]
[1764770904048,1.08390393,893.58,892.42,1.183]
[1764770904252,1.08390393,893.6,892.42,1.183]
[1764770904452,1.08390393,893.59,892.42,1.183]
[1764770904654,1.08390393,893.6,892.42,1.183]
[1764770905052,0.01162872,894.49,892.42,1.183]
[1764770905053,1.08390393,893.59,892.42,1.183]
[1764770905452,1.08390393,893.55,892.42,1.183]
[1764770905650,1.08390393,893.42,892.42,1.183]
[1764770905853,1.08390393,893.35,892.42,1.183]
[1764770906252,1.08390393,893.36,892.42,1.183]
[1764770906854,1.08390393,893.31,892.42,1.183]
[1764770907048,1.08390393,893.33,892.42,1.183]
[1764770907549,1.08390393,893.23,892.42,1.183]
[1764770907853,1.08390393,893.29,892.42,1.183]
[1764770908051,1.08390393,893.2,892.42,1.183]
[1764770908255,1.08390393,893.21,892.42,1.183]
[1764770908756,1.08390393,893.03,892.42,1.183]
[1764770909151,1.08390393,892.98,892.42,1.183]
[1764770909356,1.08390393,893.01,892.42,1.183]
[1764770910051,1.08390393,893.12,892.42,1.183]
[1764770910256,1.08390393,893.39,892.42,1.183]
[1764770910458,1.07642794,893.38,892.42,1.183]
[1764770910657,1.08390393,893.39,892.42,1.183]
[1764770910855,1.08390393,893.45,892.42,1.183]
[1764770911157,1.08390393,893.44,892.42,1.183]
[1764770911562,1.07750563,893.43,892.42,1.183]
[1764770911760,0.00951665,894.33,892.42,1.183]
[1764770911761,1.08390393,893.47,892.42,1.183]
[1764770911959,1.07755063,893.46,892.42,1.183]
[1764770912158,1.08390393,893.47,892.42,1.183]
[1764770912454,1.07755944,893.46,892.42,1.183]
[1764770912654,1.07755944,893.45,892.42,1.183]
[1764770912854,1.08390393,893.58,892.42,1.183]
[1764770913059,2.16283382,893.57,892.42,1.183]
[1764770913362,1.07892989,893.56,892.42,1.183]
[1764770913562,1.08390393,893.52,892.42,1.183]
[1764770913758,1.07892989,893.51,892.42,1.183]
[1764770913959,1.07892989,893.5,892.42,1.183]
[1764770914262,1.08390393,893.53,892.42,1.183]
[1764770914263,1.07892989,893.49,892.42,1.183]
[1764770914457,1.07892989,893.48,892.42,1.183]
[1764770914661,1.07892989,893.47,892.42,1.183]
[1764770915057,1.08390393,893.61,892.42,1.183]
[1764770915258,1.08174233,893.6,892.42,1.183]
[1764770915460,1.08390393,893.52,892.42,1.183]
[1764770915658,1.08390393,893.5,892.42,1.183]
[1764770915861,1.08174233,893.49,892.42,1.183]
[1764770916258,2.16564626,893.49,892.42,1.183]
[1764770916558,1.08390393,893.45,892.42,1.183]
[1764770916858,2.16564626,893.44,892.42,1.183]
[1764770917063,1.08174233,893.43,892.42,1.183]
[1764770917261,2.16564626,893.43,892.42,1.183]
[1764770917462,1.08174233,893.42,892.42,1.183]
[1764770918563,1.08390393,893.38,892.42,1.183]
[1764770918762,1.08174233,893.37,892.42,1.183]
[1764770919158,2.16564626,893.37,892.34,1.021]
[1764770919361,1.08390393,893.24,892.34,1.021]
[1764770919558,0.01054208,894.27,892.34,1.021]
[1764770919559,1.08390393,893.12,892.34,1.021]
[1764770919757,1.08174233,893.11,892.34,1.021]
[1764770920460,0.80350863,892.8,892.34,1.021]
[1764770920659,1.08174233,892.79,892.34,1.021]
[1764770921362,0.80350863,892.87,892.34,1.021]
[1764770921563,1.09530368,892.86,892.34,1.021]
[1764770921762,0.01234367,893.76,892.34,1.021]
[1764770921763,1.89881231,892.85,892.34,1.021]
[1764770922061,1.09530368,892.84,892.34,1.021]
[1764770922259,1.09530368,892.83,892.34,1.021]
[1764770922459,0.80350863,892.77,892.34,1.021]
[1764770922665,0.80350863,892.74,892.34,1.021]
[1764770922858,1.09530368,892.73,892.34,1.021]
[1764770923161,1.09530368,892.72,892.34,1.021]
[1764770923360,1.09530368,892.71,892.34,1.021]
[1764770923565,1.09530368,892.7,892.34,1.021]
[1764770923761,0.80350863,892.84,892.34,1.021]
[1764770923961,1.09496167,892.83,892.34,1.021]
[1764770924165,0.80350863,892.95,892.34,1.021]
[1764770924465,0.80350863,892.96,892.34,1.021]
[1764770924667,0.00974018,893.84,892.34,1.021]
[1764770924668,0.80350863,893.14,892.34,1.021]
[1764770924871,0.80350863,893.39,892.34,1.021]
[1764770925066,0.80350863,893.63,892.34,1.021]
[1764770925265,0.80350863,893.6,892.34,1.021]
[1764770925474,0.80350863,893.7,892.34,1.021]
[1764770925669,1.62585589,894.02,892.34,1.021]
[1764770925670,0.80350863,893.8,892.34,1.021]
[1764770925868,1.09711816,893.79,892.34,1.021]
[1764770926069,0.80350863,894.04,892.34,1.021]
[1764770926366,0.80350863,894.13,892.34,1.021]
[1764770926565,1.09745734,894.12,892.34,1.021]
[1764770926772,0.80350863,894.35,892.34,1.021]
[1764770926969,0.80350863,894.42,892.34,1.021]
[1764770927173,1.09837333,894.41,892.34,1.021]
[1764770927373,8.7307937,894.45,892.34,1.021]
[1764770927975,8.7307937,894.45,892.35,0.83948596]
[1764770928172,8.7307937,894.45,892.36,0.83948596]
[1764770928475,8.7307937,894.45,892.34,1.86048596]
[1764770928672,1.09765545,894.44,892.34,1.021]
[1764770928872,1.09750288,894.43,892.34,1.021]
[1764770929172,0.80350863,894.4,892.34,1.021]
[1764770929377,1.09750288,894.39,892.34,1.021]
[1764770929576,0.80350863,894.37,892.34,1.021]
[1764770929778,1.09750288,894.36,892.34,1.021]
[1764770929978,0.80350863,894.33,892.34,1.021]
[1764770930174,0.80350863,894.28,892.34,1.021]
[1764770930378,1.09750288,894.32,892.34,1.021]
[1764770930379,1.09750288,894.27,892.34,1.021]
[1764770930577,1.09750288,894.26,892.34,1.021]
[1764770930780,1.09750288,894.25,892.34,1.021]
[1764770931075,1.09750288,894.24,892.34,1.021]
[1764770931380,1.09750288,894.23,892.34,1.021]
[1764770931681,0.80350863,894.19,892.34,1.021]
[1764770931875,1.09750288,894.18,892.34,1.021]
[1764770932081,0.80350863,894.14,892.34,1.021]
[1764770932280,1.09750288,894.13,892.34,1.021]
[1764770932478,1.09750288,894.12,892.34,1.021]
[1764770932681,1.09750288,894.11,892.34,1.021]
[1764770932876,0.80350863,894.09,892.34,1.021]
[1764770933078,1.09750288,894.08,892.34,1.021]
[1764770933279,1.09750288,894.07,892.34,1.021]
[1764770933479,1.09750288,894.06,892.34,1.021]
[1764770933674,1.09750288,894.05,892.34,1.021]
[1764770933877,1.09750288,894.04,892.34,1.021]
[1764770934074,1.09750288,894.03,892.34,1.021]
[1764770934278,1.09750288,894.02,892.34,1.021]
[1764770934476,0.80350863,894.11,892.34,1.021]